fUSD/lending_fUSD_20260611
["ID","MTS","AMOUNT","RATE_DAILY","PERIOD"]
[424787925,1781165442000,-500.0,9.999e-05,2]
[424787928,1781165442000,-500.0,9.999e-05,2]
[424787920,1781165442000,-500.0,9.999e-05,2]
[424787923,1781165442000,-335.57629135,9.999e-05,2]
[424787926,1781165442000,-500.0,9.999e-05,2]
[424787935,1781165442000,-352.65928729,9.999e-05,2]
[424787932,1781165442000,-500.0,9.999e-05,2]
[424787940,1781165442000,-500.0,9.999e-05,2]
[424787941,1781165442000,-433.55762914,9.999e-05,2]
[424787933,1781165442000,-500.0,9.999e-05,2]
[424787937,1781165442000,-500.0,9.999e-05,2]
[424787939,1781165442000,-500.0,9.999e-05,2]
[424787944,1781165442000,-232.57655313,0.0001,2]
[424787945,1781165442000,-232.57655313,0.0001,2]
[424787924,1781165442000,-500.0,9.999e-05,2]
[424787946,1781165442000,-232.57655313,0.0001,2]
[424787931,1781165442000,-354.6342822,9.999e-05,2]
[424787919,1781165442000,-500.0,9.999e-05,2]
[424787905,1781165442000,-500.0,9.999e-05,2]
[424787917,1781165442000,-500.0,9.999e-05,2]
[424787947,1781165442000,-9800.0,0.0001,3]
[424787897,1781165442000,-500.0,9.999e-05,2]
[424787895,1781165442000,-500.0,9.999e-05,2]
[424787900,1781165442000,-500.0,9.999e-05,2]
[424787901,1781165442000,-500.0,9.999e-05,2]
[424787898,1781165442000,-500.0,9.999e-05,2]
[424787896,1781165442000,-500.0,9.999e-05,2]
[424787899,1781165442000,-500.0,9.999e-05,2]
[424787906,1781165442000,-500.0,9.999e-05,2]
[424787902,1781165442000,-500.0,9.999e-05,2]
[424787916,1781165442000,-500.0,9.999e-05,2]
[424787903,1781165442000,-500.0,9.999e-05,2]
[424787907,1781165442000,-500.0,9.999e-05,2]
[424787910,1781165442000,-500.0,9.999e-05,2]
[424787909,1781165442000,-500.0,9.999e-05,2]
[424787913,1781165442000,-500.0,9.999e-05,2]
[424787914,1781165442000,-500.0,9.999e-05,2]
[424787908,1781165442000,-500.0,9.999e-05,2]
[424787912,1781165442000,-500.0,9.999e-05,2]
[424787911,1781165442000,-500.0,9.999e-05,2]
[424787915,1781165442000,-500.0,9.999e-05,2]
[424787918,1781165442000,-500.0,9.999e-05,2]
[424787904,1781165442000,-500.0,9.999e-05,2]
[424787948,1781165442000,-276.22395088,0.0001,2]
[424787953,1781165442000,-622.36353489,0.0001,2]
[424787954,1781165442000,-254.58489995,0.00010001,2]
[424787987,1781165442000,-276.09958385,0.00010082,2]
[424787989,1781165442000,-208.1114482,0.00010082,2]
[424787991,1781165442000,-210.0975545,0.00010082,2]
[424787994,1781165442000,-622.36353489,0.0001009,2]
[424787995,1781165442000,-2791401.92242216,0.000101,2]
[424787990,1781165442000,-285.87761885,0.00010082,2]
[424787992,1781165442000,-254.58489995,0.00010082,2]
[424787993,1781165442000,-289.90717118,0.00010082,2]
[424787998,1781165442000,-177.357647,0.000101,2]
[424787999,1781165442000,-177.357647,0.000101,2]
[424787988,1781165442000,-225.43309031,0.00010082,2]
[424787997,1781165442000,-177.357647,0.000101,2]
[424788004,1781165442000,-164.33069,0.000101,2]
[424788002,1781165442000,-164.33069,0.000101,2]
[424788003,1781165442000,-164.33069,0.000101,2]
[424788001,1781165442000,-151.0,0.000101,2]
[424788005,1781165442000,-164.33069,0.000101,2]
[424788006,1781165442000,-151.0,0.000101,2]
[424788008,1781165442000,-1064.597968,0.000101,2]
[424788009,1781165442000,-1064.597968,0.000101,2]
[424788007,1781165442000,-151.0,0.000101,2]
[424787949,1781165442000,-250.0,0.0001,2]
[424788000,1781165442000,-151.0,0.000101,2]
[424787986,1781165442000,-248.12091067,0.00010082,2]
[424787996,1781165442000,-177.357647,0.000101,2]
[424787982,1781165442000,-254.58489995,0.00010062,2]
[424787951,1781165442000,-2968.95470527,0.0001,2]
[424787981,1781165442000,-150.0,0.00010058,2]
[424787963,1781165442000,-150.0,0.00010006,2]
[424787964,1781165442000,-150.0,0.0001001,2]
[424787965,1781165442000,-150.0,0.0001001,2]
[424787967,1781165442000,-500.93,0.00010015,2]
[424787966,1781165442000,-254.58489995,0.00010011,2]
[424787969,1781165442000,-150.0,0.00010025,2]
[424787971,1781165442000,-4000.0,0.00010027,2]
[424787972,1781165442000,-254.58489995,0.00010031,2]
[424787974,1781165442000,-150.0,0.00010034,2]
[424787968,1781165442000,-254.58489995,0.00010021,2]
[424787984,1781165442000,-254.58489995,0.00010072,2]
[424787970,1781165442000,-150.0,0.00010025,2]
[424787978,1781165442000,-254.58489995,0.00010052,2]
[424787977,1781165442000,-159.78,0.00010046,2]
[424787975,1781165442000,-254.58489995,0.00010041,2]
[424787976,1781165442000,-150.0,0.00010044,2]
[424787979,1781165442000,-150.0,0.00010053,2]
[424787983,1781165442000,-150.0,0.00010063,2]
[424787985,1781165442000,-257.36274763,0.00010082,2]
[424787973,1781165442000,-150.0,0.00010034,2]
[424787980,1781165442000,-150.0,0.00010058,2]
[424788067,1781165443000,-5527.0,0.000108,5]
[424788070,1781165443000,-1531.77123695,0.00010845,2]
[424788068,1781165443000,-1531.77123695,0.00010806,2]
[424788066,1781165443000,-1531.77123695,0.00010786,2]
[424788071,1781165443000,-1139.78,0.00010859,2]
[424788061,1781165443000,-228.894412,0.0001074,2]
[424788063,1781165443000,-1531.77123695,0.00010765,2]
[424788062,1781165443000,-1531.77123695,0.00010743,2]
[424788064,1781165443000,-500.0,0.00010779,2]
[424788069,1781165443000,-1531.77123695,0.00010826,2]
[424788065,1781165443000,-4000.0,0.00010779,2]
[424788072,1781165443000,-1531.77123695,0.00010863,2]
[424788083,1781165443000,-500.0,0.00010958,2]
[424788074,1781165443000,-1531.77123695,0.00010898,2]
[424788073,1781165443000,-1531.77123695,0.00010881,2]
[424788076,1781165443000,-20184.37238519,0.000109,2]
[424788077,1781165443000,-2083.20542946,0.000109,2]
[424788078,1781165443000,-20184.37238519,0.00010906,2]
[424788081,1781165443000,-1531.77123695,0.00010948,2]
[424788079,1781165443000,-1531.77123695,0.00010915,2]
[424788080,1781165443000,-1531.77123695,0.00010932,2]
[424788082,1781165443000,-622.36353489,0.00010948,2]
[424788085,1781165443000,-500.0,0.00010958,2]
[424788053,1781165443000,-548.041063,0.00010697,2]
[424788075,1781165443000,-20184.37238524,0.000109,2]
[424788057,1781165443000,-1531.77123695,0.00010721,2]
[424788017,1781165443000,-2968.95470525,0.00010175,2]
[424788050,1781165443000,-433.0,0.00010679,2]
[424788086,1781165443000,-500.0,0.00010958,2]
[424788011,1781165443000,-1064.597968,0.000101,2]
[424788015,1781165443000,-165.1,0.00010154,2]
[424788013,1781165443000,-1064.597968,0.000101,2]
[424788019,1781165443000,-1531.77123695,0.00010211,2]
[424788022,1781165443000,-500.0,0.00010231,2]
[424788024,1781165443000,-4000.0,0.00010278,2]
[424788026,1781165443000,-97755.33111815,0.000103,2]
[424788029,1781165443000,-1531.77123695,0.00010365,2]
[424788030,1781165443000,-1531.77123695,0.00010429,2]
[424788032,1781165443000,-165.1,0.0001045,2]
[424788034,1781165443000,-159.78,0.00010502,2]
[424788033,1781165443000,-1531.77123695,0.00010477,2]
[424788036,1781165443000,-2000.0,0.00010508,2]
[424788038,1781165443000,-4000.0,0.00010529,2]
[424788039,1781165443000,-1531.77123695,0.00010555,2]
[424788037,1781165443000,-1531.77123695,0.00010519,2]
[424788040,1781165443000,-1531.77123695,0.00010588,2]
[424788035,1781165443000,-500.0,0.00010505,2]
[424788042,1781165443000,-728.96288957,0.00010592,2]
[424788044,1781165443000,-1531.77123695,0.00010618,2]
[424788046,1781165443000,-250.31279834,0.00010625,2]
[424788060,1781165443000,-495.162687,0.00010739,2]
[424788047,1781165443000,-1531.77123695,0.00010646,2]
[424788049,1781165443000,-1531.77123695,0.00010672,2]
[424788055,1781165443000,-1531.77123695,0.00010697,2]
[424788084,1781165443000,-500.0,0.00010958,2]
[424788138,1781165443000,-152.0,0.0001096,7]
[424788087,1781165443000,-500.0,0.00010958,2]
[424788121,1781165443000,-500.0,0.00010958,2]
[424788118,1781165443000,-500.0,0.00010958,2]
[424788120,1781165443000,-500.0,0.00010958,2]
[424788119,1781165443000,-500.0,0.00010958,2]
[424788122,1781165443000,-500.0,0.00010958,2]
[424788124,1781165443000,-500.0,0.00010958,2]
[424788123,1781165443000,-500.0,0.00010958,2]
[424788126,1781165443000,-500.0,0.00010958,2]
[424788128,1781165443000,-500.0,0.00010958,2]
[424788125,1781165443000,-500.0,0.00010958,2]
[424788127,1781165443000,-500.0,0.00010958,2]
[424788116,1781165443000,-500.0,0.00010958,2]
[424788133,1781165443000,-186.7,0.00010959,2]
[424788130,1781165443000,-500.0,0.00010958,2]
[424788132,1781165443000,-151.0,0.00010959,2]
[424788134,1781165443000,-150.0,0.00010959,2]
[424788136,1781165443000,-2123.92,0.00010959,2]
[424788135,1781165443000,-166.66,0.00010959,2]
[424788137,1781165443000,-159.78,0.00010959,2]
[424788141,1781165443000,-1531.77123695,0.00010979,2]
[424788139,1781165443000,-152.0,0.00010962,7]
[424788140,1781165443000,-1531.77123695,0.00010964,2]
[424788142,1781165443000,-177.19,0.00010989,2]
[424788088,1781165443000,-500.0,0.00010958,2]
[424788131,1781165443000,-151.0,0.00010959,2]
[424788112,1781165443000,-500.0,0.00010958,2]
[424788129,1781165443000,-500.0,0.00010958,2]
[424788117,1781165443000,-500.0,0.00010958,2]
[424788089,1781165443000,-500.0,0.00010958,2]
[424788115,1781165443000,-500.0,0.00010958,2]
[424788093,1781165443000,-500.0,0.00010958,2]
[424788091,1781165443000,-500.0,0.00010958,2]
[424788090,1781165443000,-500.0,0.00010958,2]
[424788092,1781165443000,-500.0,0.00010958,2]
[424788094,1781165443000,-500.0,0.00010958,2]
[424788098,1781165443000,-500.0,0.00010958,2]
[424788095,1781165443000,-500.0,0.00010958,2]
[424788097,1781165443000,-500.0,0.00010958,2]
[424788099,1781165443000,-500.0,0.00010958,2]
[424788103,1781165443000,-500.0,0.00010958,2]
[424788102,1781165443000,-500.0,0.00010958,2]
[424788096,1781165443000,-500.0,0.00010958,2]
[424788101,1781165443000,-500.0,0.00010958,2]
[424788114,1781165443000,-500.0,0.00010958,2]
[424788113,1781165443000,-500.0,0.00010958,2]
[424788108,1781165443000,-500.0,0.00010958,2]
[424788110,1781165443000,-500.0,0.00010958,2]
[424788109,1781165443000,-500.0,0.00010958,2]
[424788111,1781165443000,-500.0,0.00010958,2]
[424788104,1781165443000,-500.0,0.00010958,2]
[424788100,1781165443000,-500.0,0.00010958,2]
[424788105,1781165443000,-500.0,0.00010958,2]
[424788106,1781165443000,-500.0,0.00010958,2]
[424788107,1781165443000,-500.0,0.00010958,2]
[424788173,1781165444000,-87135.38377846,0.00011099,2]
[424788185,1781165444000,-1531.77123695,0.00011158,2]
[424788181,1781165444000,-1531.77123695,0.00011107,2]
[424788182,1781165444000,-1531.77123695,0.0001112,2]
[424788180,1781165444000,-1064.597968,0.00011099,2]
[424788177,1781165444000,-1064.597968,0.00011099,2]
[424788176,1781165444000,-151.0,0.00011099,2]
[424788178,1781165444000,-1064.597968,0.00011099,2]
[424788175,1781165444000,-151.0,0.00011099,2]
[424788174,1781165444000,-87135.38377846,0.00011099,2]
[424788184,1781165444000,-1531.77123695,0.00011146,2]
[424788179,1781165444000,-1064.597968,0.00011099,2]
[424788183,1781165444000,-1531.77123695,0.00011133,2]
[424788197,1781165444000,-1000.0,0.0001127,2]
[424788187,1781165444000,-166.66,0.00011178,2]
[424788190,1781165444000,-1531.77123695,0.00011207,2]
[424788188,1781165444000,-1531.77123695,0.00011183,2]
[424788191,1781165444000,-1531.77123695,0.00011218,2]
[424788189,1781165444000,-1531.77123695,0.00011195,2]
[424788192,1781165444000,-1531.77123695,0.0001123,2]
[424788194,1781165444000,-1531.77123695,0.00011242,2]
[424788198,1781165444000,-1531.77123695,0.00011275,2]
[424788195,1781165444000,-1531.77123695,0.00011253,2]
[424788196,1781165444000,-1531.77123695,0.00011264,2]
[424788193,1781165444000,-155.04,0.00011233,2]
[424788172,1781165444000,-87135.38377846,0.00011099,2]
[424788186,1781165444000,-1531.77123695,0.0001117,2]
[424788171,1781165444000,-87135.38377846,0.00011099,2]
[424788143,1781165444000,-1531.77123695,0.00010994,2]
[424788168,1781165444000,-87135.38377846,0.00011099,2]
[424788199,1781165444000,-1531.77123695,0.00011286,2]
[424788144,1781165444000,-2968.95470525,0.00010999,2]
[424788145,1781165444000,-1531.77123695,0.00011009,2]
[424788147,1781165444000,-4000.0,0.0001103,2]
[424788148,1781165444000,-1531.77123695,0.00011038,2]
[424788150,1781165444000,-500.0,0.00011053,2]
[424788149,1781165444000,-1531.77123695,0.00011053,2]
[424788146,1781165444000,-1531.77123695,0.00011024,2]
[424788151,1781165444000,-1531.77123695,0.00011066,2]
[424788152,1781165444000,-166.66,0.00011068,2]
[424788154,1781165444000,-1531.77123695,0.00011094,2]
[424788153,1781165444000,-1531.77123695,0.0001108,2]
[424788170,1781165444000,-87135.38377846,0.00011099,2]
[424788155,1781165444000,-16740.93695482,0.00011099,2]
[424788163,1781165444000,-16740.93695478,0.00011099,2]
[424788157,1781165444000,-16740.93695478,0.00011099,2]
[424788160,1781165444000,-16740.93695478,0.00011099,2]
[424788162,1781165444000,-16740.93695478,0.00011099,2]
[424788158,1781165444000,-16740.93695478,0.00011099,2]
[424788161,1781165444000,-16740.93695478,0.00011099,2]
[424788159,1781165444000,-16740.93695478,0.00011099,2]
[424788165,1781165444000,-87135.38377854,0.00011099,2]
[424788164,1781165444000,-16740.93695478,0.00011099,2]
[424788167,1781165444000,-87135.38377846,0.00011099,2]
[424788166,1781165444000,-87135.38377846,0.00011099,2]
[424788169,1781165444000,-87135.38377846,0.00011099,2]
[424788156,1781165444000,-16740.93695478,0.00011099,2]
[424788200,1781165444000,-166.66,0.00011288,2]
[424788232,1781165444000,-200.0,0.00012021,2]
[424788201,1781165444000,-500.0,0.00011327,2]
[424788234,1781165444000,-1859.160221,0.00012128,2]
[424788236,1781165444000,-165.78,0.00012329,2]
[424788235,1781165444000,-503.27053058,0.00012149,2]
[424788237,1781165444000,-159.78,0.00012329,2]
[424788238,1781165444000,-1273.47,0.00012494,2]
[424788239,1781165444000,-20184.37238519,0.00012504,2]
[424788240,1781165444000,-2000.0,0.00012609,2]
[424788241,1781165444000,-502.0,0.0001274,2]
[424788242,1781165444000,-276.0,0.00012877,2]
[424788243,1781165444000,-7347.79,0.00012893,2]
[424788246,1781165444000,-181.88651015,0.00013022,2]
[424788244,1781165444000,-1252.0,0.00012921,2]
[424788230,1781165444000,-1139.78,0.00011945,2]
[424788247,1781165444000,-150.71381454,0.00013022,2]
[424788248,1781165444000,-1139.78,0.00013031,2]
[424788249,1781165444000,-20184.37238519,0.00013303,2]
[424788250,1781165444000,-199.5,0.00013476,2]
[424788251,1781165444000,-1273.47,0.0001363,2]
[424788252,1781165444000,-151.0,0.00013695,2]
[424788253,1781165444000,-500.0,0.00013698,2]
[424788254,1781165444000,-500.0,0.00013698,2]
[424788256,1781165444000,-500.0,0.00013698,2]
[424788257,1781165444000,-500.0,0.00013698,2]
[424788259,1781165444000,-500.0,0.00013698,2]
[424788258,1781165444000,-362.50237529,0.00013698,2]
[424788202,1781165444000,-500.0,0.00011342,2]
[424788245,1781165444000,-159.47308989,0.00013022,2]
[424788260,1781165444000,-500.0,0.00013698,2]
[424788255,1781165444000,-503.31933434,0.00013698,2]
[424788233,1781165444000,-48317.9,0.00012055,2]
[424788231,1781165444000,-200.0,0.00012021,2]
[424788203,1781165444000,-166.66,0.00011397,2]
[424788205,1781165444000,-166.66,0.00011507,2]
[424788209,1781165444000,-200.0,0.00011552,2]
[424788207,1781165444000,-1000.0,0.00011552,2]
[424788208,1781165444000,-346.1279258,0.00011552,2]
[424788206,1781165444000,-438.16927401,0.00011551,2]
[424788210,1781165444000,-200.0,0.00011552,2]
[424788204,1781165444000,-159.78,0.00011416,2]
[424788213,1781165444000,-350.0,0.00011562,3]
[424788214,1781165444000,-500.0,0.00011601,2]
[424788212,1781165444000,-2000.0,0.00011559,2]
[424788215,1781165444000,-200.0,0.00011668,2]
[424788211,1781165444000,-200.0,0.00011552,2]
[424788216,1781165444000,-200.0,0.00011668,2]
[424788217,1781165444000,-200.0,0.00011668,2]
[424788227,1781165444000,-200.0,0.00011902,2]
[424788225,1781165444000,-500.0,0.00011875,2]
[424788226,1781165444000,-200.0,0.00011902,2]
[424788223,1781165444000,-200.0,0.00011784,2]
[424788228,1781165444000,-200.0,0.00011902,2]
[424788220,1781165444000,-175.0,0.00011781,2]
[424788218,1781165444000,-20184.37238519,0.00011705,2]
[424788224,1781165444000,-159.78,0.00011872,2]
[424788219,1781165444000,-736.0,0.00011747,2]
[424788229,1781165444000,-5267.5548084,0.00011922,2]
[424788222,1781165444000,-200.0,0.00011784,2]
[424788221,1781165444000,-200.0,0.00011784,2]
[424788298,1781165445000,-500.0,0.00013698,2]
[424788292,1781165445000,-500.0,0.00013698,2]
[424788290,1781165445000,-500.0,0.00013698,2]
[424788291,1781165445000,-500.0,0.00013698,2]
[424788295,1781165445000,-500.0,0.00013698,2]
[424788296,1781165445000,-500.0,0.00013698,2]
[424788294,1781165445000,-500.0,0.00013698,2]
[424788297,1781165445000,-500.0,0.00013698,2]
[424788299,1781165445000,-500.0,0.00013698,2]
[424788287,1781165445000,-500.0,0.00013698,2]
[424788293,1781165445000,-500.0,0.00013698,2]
[424788302,1781165445000,-500.0,0.00013698,2]
[424788300,1781165445000,-500.0,0.00013698,2]
[424788304,1781165445000,-500.0,0.00013698,2]
[424788305,1781165445000,-500.0,0.00013698,2]
[424788303,1781165445000,-500.0,0.00013698,2]
[424788307,1781165445000,-500.0,0.00013698,2]
[424788308,1781165445000,-500.0,0.00013698,2]
[424788306,1781165445000,-500.0,0.00013698,2]
[424788309,1781165445000,-500.0,0.00013698,2]
[424788289,1781165445000,-500.0,0.00013698,2]
[424788310,1781165445000,-500.0,0.00013698,2]
[424788301,1781165445000,-500.0,0.00013698,2]
[424788288,1781165445000,-500.0,0.00013698,2]
[424788273,1781165445000,-500.0,0.00013698,2]
[424788285,1781165445000,-500.0,0.00013698,2]
[424788312,1781165445000,-500.0,0.00013698,2]
[424788261,1781165445000,-500.0,0.00013698,2]
[424788263,1781165445000,-500.0,0.00013698,2]
[424788265,1781165445000,-590.60459875,0.00013698,2]
[424788264,1781165445000,-579.39543898,0.00013698,2]
[424788266,1781165445000,-500.0,0.00013698,2]
[424788268,1781165445000,-500.0,0.00013698,2]
[424788269,1781165445000,-179.84270164,0.00013698,2]
[424788271,1781165445000,-500.0,0.00013698,2]
[424788270,1781165445000,-500.0,0.00013698,2]
[424788267,1781165445000,-500.0,0.00013698,2]
[424788275,1781165445000,-500.0,0.00013698,2]
[424788274,1781165445000,-500.0,0.00013698,2]
[424788272,1781165445000,-500.0,0.00013698,2]
[424788277,1781165445000,-500.0,0.00013698,2]
[424788276,1781165445000,-500.0,0.00013698,2]
[424788279,1781165445000,-500.0,0.00013698,2]
[424788282,1781165445000,-500.0,0.00013698,2]
[424788278,1781165445000,-500.0,0.00013698,2]
[424788281,1781165445000,-500.0,0.00013698,2]
[424788280,1781165445000,-500.0,0.00013698,2]
[424788284,1781165445000,-500.0,0.00013698,2]
[424788283,1781165445000,-500.0,0.00013698,2]
[424788286,1781165445000,-500.0,0.00013698,2]
[424788313,1781165445000,-500.0,0.00013698,2]
[424788262,1781165445000,-500.0,0.00013698,2]
[424788317,1781165445000,-500.0,0.00013698,2]
[424788340,1781165445000,-500.0,0.00013698,2]
[424788344,1781165445000,-500.0,0.00013698,2]
[424788345,1781165445000,-500.0,0.00013698,2]
[424788346,1781165445000,-500.0,0.00013698,2]
[424788348,1781165445000,-500.0,0.00013698,2]
[424788350,1781165445000,-2201.56,0.00013698,2]
[424788347,1781165445000,-504.05769263,0.00013698,2]
[424788349,1781165445000,-492.8427843,0.00013698,2]
[424788351,1781165445000,-2201.56,0.00013698,2]
[424788352,1781165445000,-2201.56,0.00013698,2]
[424788353,1781165445000,-2201.56,0.00013698,2]
[424788354,1781165445000,-2201.56,0.00013698,2]
[424788355,1781165445000,-2201.56,0.00013698,2]
[424788356,1781165445000,-2201.56,0.00013698,2]
[424788357,1781165445000,-2201.56,0.00013698,2]
[424788358,1781165445000,-2201.56,0.00013698,2]
[424788359,1781165445000,-2201.56,0.00013698,2]
[424788360,1781165445000,-2201.56,0.00013698,2]
[424788361,1781165445000,-2201.56,0.00013698,2]
[424788363,1781165445000,-539.51,0.00013698,2]
[424788364,1781165445000,-539.51,0.00013698,2]
[424788365,1781165445000,-539.51,0.00013698,2]
[424788316,1781165445000,-500.0,0.00013698,2]
[424788343,1781165445000,-500.0,0.00013698,2]
[424788342,1781165445000,-500.0,0.00013698,2]
[424788362,1781165445000,-2201.56,0.00013698,2]
[424788339,1781165445000,-500.0,0.00013698,2]
[424788341,1781165445000,-500.0,0.00013698,2]
[424788315,1781165445000,-500.0,0.00013698,2]
[424788311,1781165445000,-500.0,0.00013698,2]
[424788319,1781165445000,-500.0,0.00013698,2]
[424788318,1781165445000,-500.0,0.00013698,2]
[424788320,1781165445000,-500.0,0.00013698,2]
[424788321,1781165445000,-500.0,0.00013698,2]
[424788322,1781165445000,-500.0,0.00013698,2]
[424788323,1781165445000,-500.0,0.00013698,2]
[424788325,1781165445000,-500.0,0.00013698,2]
[424788326,1781165445000,-500.0,0.00013698,2]
[424788324,1781165445000,-500.0,0.00013698,2]
[424788314,1781165445000,-500.0,0.00013698,2]
[424788329,1781165445000,-500.0,0.00013698,2]
[424788327,1781165445000,-504.25668169,0.00013698,2]
[424788331,1781165445000,-500.0,0.00013698,2]
[424788330,1781165445000,-500.0,0.00013698,2]
[424788332,1781165445000,-500.0,0.00013698,2]
[424788333,1781165445000,-500.0,0.00013698,2]
[424788334,1781165445000,-500.0,0.00013698,2]
[424788335,1781165445000,-500.0,0.00013698,2]
[424788336,1781165445000,-500.0,0.00013698,2]
[424788338,1781165445000,-500.0,0.00013698,2]
[424788337,1781165445000,-500.0,0.00013698,2]
[424788328,1781165445000,-473.88481406,0.00013698,2]
[424788416,1781165446000,-500.0,0.00013698,2]
[424788418,1781165446000,-500.0,0.00013698,2]
[424788412,1781165446000,-500.0,0.00013698,2]
[424788400,1781165446000,-909.22,0.00013698,2]
[424788404,1781165446000,-909.22,0.00013698,2]
[424788406,1781165446000,-909.22,0.00013698,2]
[424788410,1781165446000,-909.22,0.00013698,2]
[424788408,1781165446000,-909.22,0.00013698,2]
[424788402,1781165446000,-909.22,0.00013698,2]
[424788420,1781165446000,-527.02640831,0.00013698,2]
[424788427,1781165446000,-660.37,0.00013698,2]
[424788431,1781165446000,-660.37,0.00013698,2]
[424788422,1781165446000,-660.37,0.00013698,2]
[424788425,1781165446000,-660.37,0.00013698,2]
[424788429,1781165446000,-660.37,0.00013698,2]
[424788433,1781165446000,-660.37,0.00013698,2]
[424788434,1781165446000,-660.37,0.00013698,2]
[424788435,1781165446000,-660.37,0.00013698,2]
[424788436,1781165446000,-660.37,0.00013698,2]
[424788438,1781165446000,-660.37,0.00013698,2]
[424788439,1781165446000,-660.37,0.00013698,2]
[424788397,1781165446000,-909.22,0.00013698,2]
[424788432,1781165446000,-660.37,0.00013698,2]
[424788398,1781165446000,-909.22,0.00013698,2]
[424788380,1781165446000,-539.51,0.00013698,2]
[424788393,1781165446000,-909.22,0.00013698,2]
[424788367,1781165446000,-539.51,0.00013698,2]
[424788366,1781165446000,-539.51,0.00013698,2]
[424788368,1781165446000,-539.51,0.00013698,2]
[424788369,1781165446000,-539.51,0.00013698,2]
[424788371,1781165446000,-539.51,0.00013698,2]
[424788370,1781165446000,-539.51,0.00013698,2]
[424788372,1781165446000,-539.51,0.00013698,2]
[424788375,1781165446000,-539.51,0.00013698,2]
[424788376,1781165446000,-539.51,0.00013698,2]
[424788373,1781165446000,-539.51,0.00013698,2]
[424788374,1781165446000,-539.51,0.00013698,2]
[424788377,1781165446000,-539.51,0.00013698,2]
[424788378,1781165446000,-539.51,0.00013698,2]
[424788379,1781165446000,-539.51,0.00013698,2]
[424788381,1781165446000,-539.51,0.00013698,2]
[424788382,1781165446000,-539.51,0.00013698,2]
[424788384,1781165446000,-539.51,0.00013698,2]
[424788383,1781165446000,-539.51,0.00013698,2]
[424788385,1781165446000,-539.51,0.00013698,2]
[424788386,1781165446000,-539.57889603,0.00013698,2]
[424788387,1781165446000,-909.22,0.00013698,2]
[424788389,1781165446000,-909.22,0.00013698,2]
[424788391,1781165446000,-909.22,0.00013698,2]
[424788395,1781165446000,-909.22,0.00013698,2]
[424788437,1781165446000,-660.37,0.00013698,2]
[424788440,1781165446000,-1784.17,0.00013698,2]
[424788442,1781165446000,-1784.17,0.00013698,2]
[424788470,1781165446000,-500.0,0.00013698,2]
[424788471,1781165446000,-500.0,0.00013698,2]
[424788469,1781165446000,-500.0,0.00013698,2]
[424788473,1781165446000,-228.99234821,0.00013698,2]
[424788475,1781165446000,-500.0,0.00013698,2]
[424788474,1781165446000,-500.0,0.00013698,2]
[424788476,1781165446000,-500.0,0.00013698,2]
[424788477,1781165446000,-500.0,0.00013698,2]
[424788478,1781165446000,-500.0,0.00013698,2]
[424788479,1781165446000,-500.0,0.00013698,2]
[424788480,1781165446000,-500.0,0.00013698,2]
[424788483,1781165446000,-500.0,0.00013698,2]
[424788482,1781165446000,-500.0,0.00013698,2]
[424788486,1781165446000,-500.0,0.00013698,2]
[424788484,1781165446000,-500.0,0.00013698,2]
[424788485,1781165446000,-500.0,0.00013698,2]
[424788487,1781165446000,-500.0,0.00013698,2]
[424788490,1781165446000,-500.0,0.00013698,2]